[Event "Dvaro taure"]
[Site "Taujenai, Lithuania"]
[Date "2021.11.28"]
[Round "7.10"]
[White "Posaskov, Nikita"]
[Black "Spevak, Dovydas"]
[Result "1/2-1/2"]
[WhiteElo "1971"]
[BlackElo "1523"]
[PlyCount "244"]
[EventDate "2021.??.??"]
[TimeControl "10+5"]
[WhiteClock "0:03:50"]
[BlackClock "0:00:39"]

1. d4 {[%emt 0:00:01]} d5 {[%emt 0:00:01]} 2. c4 {[%emt 0:00:00]} e6 {[%emt 0:
00:00]} 3. Nf3 {[%emt 0:00:02]} c6 4. g3 {[%emt 0:00:04]} Bd6 {[%emt 0:00:02]}
5. Bg2 {[%emt 0:00:00]} f5 {[%emt 0:00:07]} 6. O-O {[%emt 0:00:02]} Nf6 {[%emt
0:00:01]} 7. b3 {[%emt 0:00:01]} O-O {[%emt 0:00:04]} 8. Ba3 {[%emt 0:00:03]}
Bxa3 {[%emt 0:00:13]} 9. Nxa3 {[%emt 0:00:02]} Nbd7 {[%emt 0:00:13]} 10. Nc2 {
[%emt 0:00:07]} b6 {[%emt 0:00:34]} 11. Nb4 {[%emt 0:00:03]} Bb7 {[%emt 0:00:
10]} 12. Nd3 {[%emt 0:00:02]} c5 {[%emt 0:01:16]} 13. dxc5 {[%emt 0:00:14]}
Nxc5 {[%emt 0:00:34]} 14. cxd5 {[%emt 0:00:13]} Nxd3 {[%emt 0:00:30]} 15. Qxd3
{[%emt 0:00:03]} Qxd5 {[%emt 0:00:32]} 16. Qxd5 {[%emt 0:00:02]} Bxd5 {[%emt 0:
00:00]} 17. Nd4 {[%emt 0:00:03]} Bxg2 {[%emt 0:00:19]} 18. Kxg2 {[%emt 0:00:02]
} Kf7 {[%emt 0:00:10]} 19. Rac1 {[%emt 0:00:01]} Rfc8 {[%emt 0:00:31]} 20. Nb5
{[%emt 0:01:35]} Ke7 {[%emt 0:01:33]} 21. Rxc8 {[%emt 0:00:15]} Rxc8 {[%emt 0:
00:01]} 22. Nxa7 {[%emt 0:00:02]} Rc2 {[%emt 0:00:24]} 23. Ra1 {[%emt 0:00:02]}
Rxe2 {[%emt 0:00:42]} 24. Nc8+ {[%emt 0:00:02]} Kd7 {[%emt 0:00:11]} 25. Nxb6+
{[%emt 0:00:02]} Kc7 {[%emt 0:00:36]} 26. Nc4 {[%emt 0:00:14]} Ne4 {[%emt 0:00:
26]} 27. a4 {[%emt 0:00:10]} Rxf2+ {[%emt 0:00:35]} 28. Kg1 {[%emt 0:00:00]}
Rc2 {[%emt 0:00:12]} 29. a5 {[%emt 0:00:22]} Kb7 {[%emt 0:00:36]} 30. Rd1 {
[%emt 0:02:07]} Kc7 {[%emt 0:00:41]} 31. Ra1 {[%emt 0:01:37]} Kb7 {[%emt 0:00:
08]} 32. Na3 {[%emt 0:00:02]} Rb2 {[%emt 0:00:20]} 33. a6+ {[%emt 0:00:11]} Ka8
{[%emt 0:00:08]} 34. Nb5 {[%emt 0:00:07]} Rxb3 {[%emt 0:00:10]} 35. Nc7+ {
[%emt 0:00:00]} Ka7 {[%emt 0:00:08]} 36. Nxe6 {[%emt 0:00:02]} g6 {[%emt 0:00:
17]} 37. Nf8 {[%emt 0:02:03]} Nxg3 {[%emt 0:00:08]} 38. hxg3 {[%emt 0:00:58]}
Rxg3+ {[%emt 0:00:01]} 39. Kf2 {[%emt 0:00:02]} Rb3 {[%emt 0:00:06]} 40. Nxh7 {
[%emt 0:00:47]} Rb6 {[%emt 0:00:03]} 41. Nf8 {[%emt 0:00:04]} Rxa6 {[%emt 0:00:
10]} 42. Rg1 {[%emt 0:00:01]} Rf6 {[%emt 0:00:11]} 43. Nxg6 {[%emt 0:00:04]}
Kb6 {[%emt 0:00:08]} 44. Kf3 {[%emt 0:00:01]} Kc5 {[%emt 0:00:07]} 45. Kf4 {
[%emt 0:00:01]} Ra6 {[%emt 0:00:04]} 46. Kxf5 {[%emt 0:00:03]} Kd4 {[%emt 0:00:
07]} 47. Rd1+ {[%emt 0:00:06]} Ke3 {[%emt 0:00:04]} 48. Ne5 {[%emt 0:00:02]}
Ra4 {[%emt 0:00:08]} 49. Rd3+ {[%emt 0:00:03]} Ke2 {[%emt 0:00:03]} 50. Rb3 {
[%emt 0:00:02]} Rh4 {[%emt 0:00:07]} 51. Ng4 {[%emt 0:00:03]} Kd2 {[%emt 0:00:
07]} 52. Nf6 {[%emt 0:00:09]} Ra4 {[%emt 0:00:06]} 53. Ne4+ {[%emt 0:00:02]}
Kc2 {[%emt 0:00:04]} 54. Rh3 {[%emt 0:00:01]} Ra8 {[%emt 0:00:03]} 55. Ke5 {
[%emt 0:00:11]} Re8+ {[%emt 0:00:02]} 56. Kd5 {[%emt 0:00:01]} Ra8 {[%emt 0:00:
05]} 57. Kc4 {[%emt 0:00:02]} Rc8+ {[%emt 0:00:02]} 58. Nc5 {[%emt 0:00:02]}
Rg8 {[%emt 0:00:02]} 59. Rh2+ {[%emt 0:00:03]} Kc1 {[%emt 0:00:02]} 60. Nb3+ {
[%emt 0:00:36]} Kd1 {[%emt 0:00:03]} 61. Nd4 {[%emt 0:00:02]} Rg7 {[%emt 0:00:
06]} 62. Nf5 {[%emt 0:00:07]} Rg8 {[%emt 0:00:03]} 63. Kd3 {[%emt 0:00:02]}
Rd8+ {[%emt 0:00:05]} 64. Nd4 {[%emt 0:00:02]} Ke1 {[%emt 0:00:08]} 65. Ra2 {
[%emt 0:00:01]} Rd7 {[%emt 0:00:11]} 66. Ke3 {[%emt 0:00:02]} Re7+ {[%emt 0:00:
02]} 67. Kf3 {[%emt 0:00:02]} Rd7 {[%emt 0:00:09]} 68. Nf5 {[%emt 0:00:06]} Rf7
{[%emt 0:00:03]} 69. Ke4 {[%emt 0:00:00]} Rf8 {[%emt 0:00:06]} 70. Nd4 {[%emt
0:00:07]} Rh8 {[%emt 0:00:06]} 71. Ke3 {[%emt 0:00:04]} Re8+ {[%emt 0:00:02]}
72. Kd3 {[%emt 0:00:02]} Rh8 {[%emt 0:00:05]} 73. Nf3+ {[%emt 0:00:04]} Kf1 {
[%emt 0:00:03]} 74. Ke3 {[%emt 0:00:04]} Re8+ {[%emt 0:00:00]} 75. Kf4 {[%emt
0:00:01]} Rf8+ {[%emt 0:00:02]} 76. Ke4 {[%emt 0:00:02]} Re8+ {[%emt 0:00:01]}
77. Ne5 {[%emt 0:00:01]} Rd8 {[%emt 0:00:12]} 78. Ng6 {[%emt 0:00:07]} Rd7 {
[%emt 0:00:05]} 79. Nf4 {[%emt 0:00:03]} Rf7 {[%emt 0:00:07]} 80. Kf3 {[%emt 0:
00:15]} Ke1 {[%emt 0:00:03]} 81. Rh2 {[%emt 0:00:06]} Rf8 {[%emt 0:00:07]} 82.
Ke4 {[%emt 0:00:05]} Re8+ {[%emt 0:00:02]} 83. Kd4 {[%emt 0:00:01]} Rd8+ {
[%emt 0:00:03]} 84. Nd5 {[%emt 0:00:00]} Kd1 {[%emt 0:00:12]} 85. Kc4 {[%emt 0:
00:05]} Ke1 {[%emt 0:00:08]} 86. Nf4 {[%emt 0:00:15]} Rd7 {[%emt 0:00:05]} 87.
Ne6 {[%emt 0:00:06]} Rd6 {[%emt 0:00:05]} 88. Nd4 {[%emt 0:00:03]} Rd8 {[%emt
0:00:04]} 89. Re2+ {[%emt 0:00:02]} Kf1 {[%emt 0:00:02]} 90. Ra2 {[%emt 0:00:
04]} Ke1 {[%emt 0:00:05]} 91. Kd3 {[%emt 0:00:01]} Rd7 {[%emt 0:00:07]} 92. Ke3
{[%emt 0:00:01]} Re7+ {[%emt 0:00:02]} 93. Kf4 {[%emt 0:00:01]} Rf7+ {[%emt 0:
00:04]} 94. Nf5 {[%emt 0:00:01]} Rf8 {[%emt 0:00:02]} 95. Ke4 {[%emt 0:00:03]}
Re8+ {[%emt 0:00:02]} 96. Kd5 {[%emt 0:00:02]} Rd8+ {[%emt 0:00:03]} 97. Nd6 {
[%emt 0:00:01]} Kd1 {[%emt 0:00:05]} 98. Ra7 {[%emt 0:00:01]} Ke1 {[%emt 0:00:
05]} 99. Rh7 {[%emt 0:00:02]} Kd1 {[%emt 0:00:03]} 100. Ke5 {[%emt 0:00:02]}
Ke1 {[%emt 0:00:04]} 101. Nf5 {[%emt 0:00:02]} Re8+ {[%emt 0:00:05]} 102. Kd4 {
[%emt 0:00:02]} Rd8+ {[%emt 0:00:03]} 103. Ke4 {[%emt 0:00:03]} Re8+ {[%emt 0:
00:04]} 104. Ne7 {[%emt 0:00:03]} Kd1 {[%emt 0:00:05]} 105. Ke3 {[%emt 0:00:02]
} Ra8 {[%emt 0:00:07]} 106. Rh1+ {[%emt 0:00:04]} Kc2 {[%emt 0:00:02]} 107. Nf5
{[%emt 0:00:02]} Re8+ {[%emt 0:00:03]} 108. Kd4 {[%emt 0:00:04]} Rd8+ {[%emt 0:
00:03]} 109. Ke5 {[%emt 0:00:02]} Re8+ {[%emt 0:00:02]} 110. Kd5 {[%emt 0:00:
01]} Ra8 {[%emt 0:00:03]} 111. Nd4+ {[%emt 0:00:03]} Kd2 {[%emt 0:00:04]} 112.
Rh2+ {[%emt 0:00:03]} Kd3 {[%emt 0:00:02]} 113. Rh3+ {[%emt 0:00:06]} Kd2 {
[%emt 0:00:01]} 114. Nf5 {[%emt 0:00:04]} Rd8+ {[%emt 0:00:03]} 115. Nd6 {
[%emt 0:00:03]} Rd7 {[%emt 0:00:11]} 116. Ke6 {[%emt 0:00:02]} Ra7 {[%emt 0:00:
02]} 117. Ke5 {[%emt 0:00:02]} Re7+ {[%emt 0:00:03]} 118. Kd5 {[%emt 0:00:02]}
Rd7 {[%emt 0:00:01]} 119. Kc6 {[%emt 0:00:02]} Ra7 {[%emt 0:00:02]} 120. Nb5 {
[%emt 0:00:03]} Rg7 {[%emt 0:00:03]} 121. Kc5 {[%emt 0:00:06]} Rg8 {[%emt 0:00:
04]} 122. Nd6 {[%emt 0:00:20]} Ra8 {[%emt 0:00:04]} 1/2-1/2

[Event "Dvaro taure"]
[Site "Taujenai, Lithuania"]
[Date "2021.11.28"]
[Round "7.12"]
[White "Tilvikas, Justas"]
[Black "Griksaite, Ieva"]
[Result "1-0"]
[WhiteElo "1849"]
[BlackElo "1518"]
[PlyCount "77"]
[EventDate "2021.??.??"]
[TimeControl "10+5"]
[WhiteClock "0:00:44"]
[BlackClock "0:02:00"]

1. d4 {[%emt 0:00:02]} Nf6 {[%emt 0:00:02]} 2. c4 {[%emt 0:00:02]} c5 {[%emt 0:
00:06]} 3. d5 {[%emt 0:00:02]} g6 {[%emt 0:00:01]} 4. Nc3 {[%emt 0:00:02]} Bg7
{[%emt 0:00:00]} 5. e4 {[%emt 0:00:01]} d6 {[%emt 0:00:00]} 6. Nf3 {[%emt 0:00:
02]} O-O {[%emt 0:00:02]} 7. Be2 {[%emt 0:00:02]} a6 {[%emt 0:00:02]} 8. a4 {
[%emt 0:00:00]} b6 {[%emt 0:00:02]} 9. O-O {[%emt 0:00:02]} e6 {[%emt 0:00:02]}
10. dxe6 {[%emt 0:00:19]} Bxe6 {[%emt 0:00:03]} 11. Bg5 {[%emt 0:00:07]} h6 {
[%emt 0:00:05]} 12. Bh4 {[%emt 0:00:02]} Nc6 {[%emt 0:00:34]} 13. Qc2 {[%emt 0:
01:33]} Qc7 {[%emt 0:00:05]} 14. Rad1 {[%emt 0:00:46]} Rfd8 {[%emt 0:00:20]}
15. Nd5 {[%emt 0:00:32]} Bxd5 {[%emt 0:00:12]} 16. exd5 {[%emt 0:00:33]} Nb4 {
[%emt 0:00:06]} 17. Qc3 {[%emt 0:01:54]} g5 {[%emt 0:01:58]} 18. Bg3 {[%emt 0:
00:11]} Ne4 {[%emt 0:00:03]} 19. Qb3 {[%emt 0:00:39]} Nxg3 {[%emt 0:00:11]} 20.
hxg3 {[%emt 0:00:03]} Re8 {[%emt 0:00:04]} 21. Rfe1 {[%emt 0:00:11]} Re7 {
[%emt 0:00:36]} 22. Bd3 {[%emt 0:01:32]} Nxd3 {[%emt 0:00:27]} 23. Rxe7 {[%emt
0:00:23]} Qxe7 {[%emt 0:00:05]} 24. Qxd3 {[%emt 0:00:03]} Qf6 {[%emt 0:00:18]}
25. Re1 {[%emt 0:00:21]} Rb8 {[%emt 0:00:24]} 26. b3 {[%emt 0:00:02]} Kf8 {
[%emt 0:01:40]} 27. Re4 {[%emt 0:00:41]} Re8 {[%emt 0:00:24]} 28. Rxe8+ {[%emt
0:00:20]} Kxe8 {[%emt 0:00:01]} 29. Qe4+ {[%emt 0:00:28]} Kd8 {[%emt 0:01:04]}
30. Qh7 {[%emt 0:01:24]} Bf8 {[%emt 0:00:02]} 31. Qe4 {[%emt 0:00:06]} Bg7 {
[%emt 0:00:26]} 32. g4 {[%emt 0:00:02]} Qa1+ {[%emt 0:00:45]} 33. Kh2 {[%emt 0:
00:02]} Be5+ {[%emt 0:00:08]} 34. Nxe5 {[%emt 0:00:03]} Qxe5+ {[%emt 0:00:02]}
35. Qxe5 {[%emt 0:00:02]} dxe5 {[%emt 0:00:01]} 36. Kg3 {[%emt 0:00:06]} Ke7 {
[%emt 0:00:02]} 37. Kf3 {[%emt 0:00:02]} a5 {[%emt 0:00:23]} 38. Ke4 {[%emt 0:
00:05]} Kf6 {[%emt 0:00:07]} 39. f3 {[%emt 0:00:07]} 1-0

[Event "Dvaro taure"]
[Site "Taujenai, Lithuania"]
[Date "2021.11.28"]
[Round "7.13"]
[White "Maciuitis, Ignas"]
[Black "Andrusevics, Jegors"]
[Result "1-0"]
[WhiteElo "1862"]
[BlackElo "1586"]
[PlyCount "81"]
[EventDate "2021.??.??"]
[TimeControl "10+5"]
[WhiteClock "0:06:04"]
[BlackClock "0:00:24"]

1. e4 {[%emt 0:00:02]} e6 {[%emt 0:00:02]} 2. d4 {[%emt 0:00:02]} d5 {[%emt 0:
00:00]} 3. Nc3 {[%emt 0:00:01]} Bb4 {[%emt 0:00:02]} 4. e5 {[%emt 0:00:03]} c5
{[%emt 0:00:01]} 5. a3 {[%emt 0:00:02]} Bxc3+ {[%emt 0:00:02]} 6. bxc3 {[%emt
0:00:00]} Ne7 {[%emt 0:00:02]} 7. Qg4 {[%emt 0:00:01]} Kf8 {[%emt 0:00:50]} 8.
h4 {[%emt 0:00:06]} cxd4 {[%emt 0:00:06]} 9. cxd4 {[%emt 0:00:02]} Nbc6 {[%emt
0:00:07]} 10. c3 {[%emt 0:00:05]} Bd7 {[%emt 0:00:22]} 11. Bd3 {[%emt 0:00:06]}
Rc8 {[%emt 0:00:17]} 12. Bd2 {[%emt 0:00:05]} Nf5 {[%emt 0:00:04]} 13. Ne2 {
[%emt 0:00:06]} Na5 {[%emt 0:00:35]} 14. Rb1 {[%emt 0:01:19]} b6 {[%emt 0:01:
15]} 15. Nf4 {[%emt 0:00:16]} Nc4 {[%emt 0:00:24]} 16. Bxf5 {[%emt 0:00:54]}
exf5 {[%emt 0:00:04]} 17. Qf3 {[%emt 0:00:00]} Nxd2 {[%emt 0:00:49]} 18. Kxd2 {
[%emt 0:00:02]} Be6 {[%emt 0:00:12]} 19. Nxe6+ {[%emt 0:00:07]} fxe6 {[%emt 0:
00:02]} 20. g4 {[%emt 0:00:00]} Qd7 {[%emt 0:00:54]} 21. h5 {[%emt 0:00:20]}
Ke7 {[%emt 0:00:10]} 22. gxf5 {[%emt 0:00:08]} exf5 {[%emt 0:00:22]} 23. Rhg1 {
[%emt 0:00:01]} Ke6 {[%emt 0:00:21]} 24. Rg5 {[%emt 0:00:09]} Qf7 {[%emt 0:00:
27]} 25. Rbg1 {[%emt 0:00:44]} Rhg8 {[%emt 0:00:02]} 26. a4 {[%emt 0:00:06]} g6
{[%emt 0:00:46]} 27. Rb1 {[%emt 0:00:17]} h6 {[%emt 0:00:39]} 28. hxg6 {[%emt
0:00:18]} Rxg6 {[%emt 0:00:01]} 29. Rh5 {[%emt 0:00:01]} Rh8 {[%emt 0:00:55]}
30. Rb5 {[%emt 0:00:18]} Rd8 {[%emt 0:00:42]} 31. a5 {[%emt 0:00:05]} f4 {
[%emt 0:00:35]} 32. axb6 {[%emt 0:00:11]} Qd7 {[%emt 0:01:05]} 33. Qd3 {[%emt
0:00:08]} Rdg8 {[%emt 0:00:28]} 34. b7 {[%emt 0:00:15]} Qc7 {[%emt 0:00:08]}
35. b8=Q {[%emt 0:00:24]} Rxb8 {[%emt 0:00:05]} 36. Qxg6+ {[%emt 0:00:05]} Kd7
{[%emt 0:00:01]} 37. Rxb8 {[%emt 0:00:17]} Qxb8 {[%emt 0:00:02]} 38. Qf7+ {
[%emt 0:00:00]} Kc6 {[%emt 0:00:02]} 39. Rxh6+ {[%emt 0:00:02]} Kb5 {[%emt 0:
00:02]} 40. Qxd5+ {[%emt 0:00:03]} Ka4 {[%emt 0:00:03]} 41. Ra6# {[%emt 0:00:
06]} 1-0

[Event "Dvaro taure"]
[Site "Taujenai, Lithuania"]
[Date "2021.11.28"]
[Round "7.14"]
[White "Andrijauskas, Domas"]
[Black "Gerasimovic, Stanislav"]
[Result "0-1"]
[WhiteElo "1441"]
[BlackElo "1790"]
[PlyCount "88"]
[EventDate "2021.??.??"]
[TimeControl "10+5"]
[WhiteClock "0:00:08"]
[BlackClock "0:05:46"]

1. c4 {[%emt 0:00:03]} e5 {[%emt 0:00:07]} 2. Nc3 {[%emt 0:00:08]} Nf6 {[%emt
0:00:06]} 3. e3 {[%emt 0:00:24]} c6 {[%emt 0:00:02]} 4. d4 {[%emt 0:00:32]} e4
{[%emt 0:00:03]} 5. d5 {[%emt 0:00:31]} Bb4 {[%emt 0:00:11]} 6. dxc6 {[%emt 0:
00:48]} Nxc6 {[%emt 0:00:09]} 7. Nge2 {[%emt 0:02:05]} O-O {[%emt 0:00:06]} 8.
Nd4 {[%emt 0:00:36]} d5 {[%emt 0:00:07]} 9. Nxc6 {[%emt 0:01:17]} bxc6 {[%emt
0:00:03]} 10. Qb3 {[%emt 0:01:04]} Rb8 {[%emt 0:01:25]} 11. a3 {[%emt 0:01:08]}
Bd6 {[%emt 0:00:03]} 12. Qc2 {[%emt 0:00:10]} Ba6 {[%emt 0:00:05]} 13. b3 {
[%emt 0:00:10]} Be5 {[%emt 0:00:20]} 14. Be2 {[%emt 0:00:44]} d4 {[%emt 0:00:
34]} 15. exd4 {[%emt 0:00:11]} Bxd4 {[%emt 0:00:06]} 16. O-O {[%emt 0:00:17]}
Qe7 {[%emt 0:00:11]} 17. Be3 {[%emt 0:00:36]} c5 {[%emt 0:00:32]} 18. Rad1 {
[%emt 0:00:39]} Rbd8 {[%emt 0:00:00]} 19. a4 {[%emt 0:00:11]} h6 {[%emt 0:00:
04]} 20. Nb5 {[%emt 0:00:06]} Bxb5 {[%emt 0:00:08]} 21. axb5 {[%emt 0:00:03]}
Rd7 {[%emt 0:00:09]} 22. h3 {[%emt 0:00:09]} Rfd8 {[%emt 0:00:01]} 23. Kh1 {
[%emt 0:00:06]} Qe5 {[%emt 0:00:03]} 24. Kg1 {[%emt 0:00:02]} Bxe3 {[%emt 0:00:
15]} 25. fxe3 {[%emt 0:00:04]} Qg3 {[%emt 0:00:05]} 26. Qc3 {[%emt 0:00:12]}
Rd6 {[%emt 0:00:20]} 27. Rxd6 {[%emt 0:00:02]} Rxd6 {[%emt 0:00:02]} 28. Rd1 {
[%emt 0:00:01]} Rxd1+ {[%emt 0:01:01]} 29. Bxd1 {[%emt 0:00:01]} Qd6 {[%emt 0:
00:03]} 30. Bc2 {[%emt 0:00:14]} g6 {[%emt 0:00:04]} 31. Qa5 {[%emt 0:00:08]}
Qd7 {[%emt 0:00:06]} 32. Qa6 {[%emt 0:00:05]} Kg7 {[%emt 0:00:04]} 33. Kh2 {
[%emt 0:00:07]} Qc7+ {[%emt 0:00:03]} 34. Kh1 {[%emt 0:00:01]} Qe7 {[%emt 0:00:
26]} 35. Qc6 {[%emt 0:00:06]} Qe5 {[%emt 0:00:07]} 36. Qa6 {[%emt 0:00:06]} Qc3
{[%emt 0:00:05]} 37. Qa2 {[%emt 0:00:09]} h5 {[%emt 0:00:06]} 38. Kh2 {[%emt 0:
00:04]} h4 {[%emt 0:00:03]} 39. Bb1 {[%emt 0:00:05]} Nh5 {[%emt 0:00:07]} 40.
Bxe4 {[%emt 0:00:08]} Qe5+ {[%emt 0:00:02]} 41. Kg1 {[%emt 0:00:07]} Qxe4 {
[%emt 0:00:02]} 42. Qxa7 {[%emt 0:00:02]} Qxe3+ {[%emt 0:00:02]} 43. Kh2 {
[%emt 0:00:03]} Ng3 {[%emt 0:00:04]} 44. Qc7 {[%emt 0:00:08]} Qe1 {[%emt 0:00:
06] Kg1 [%emt 00:00:09]} 0-1

[Event "Dvaro taure"]
[Site "Taujenai, Lithuania"]
[Date "2021.11.28"]
[Round "7.15"]
[White "Muralis, Aloyzas"]
[Black "Velicka, Ramunas"]
[Result "1-0"]
[WhiteElo "1748"]
[BlackElo "1606"]
[PlyCount "54"]
[EventDate "2021.??.??"]
[TimeControl "10+5"]
[WhiteClock "0:08:31"]
[BlackClock "0:04:42"]

1. e4 {[%emt 0:00:06]} e5 {[%emt 0:00:05]} 2. Bc4 {[%emt 0:00:04]} Nf6 {[%emt
0:00:05]} 3. Nc3 {[%emt 0:00:02]} Nc6 {[%emt 0:00:10]} 4. d3 {[%emt 0:00:02]}
a6 {[%emt 0:00:06]} 5. a3 {[%emt 0:00:01]} Bc5 {[%emt 0:00:04]} 6. h3 {[%emt 0:
00:04]} b5 {[%emt 0:00:30]} 7. Ba2 {[%emt 0:00:02]} Bb7 {[%emt 0:00:13]} 8.
Nge2 {[%emt 0:00:03]} d6 {[%emt 0:00:40]} 9. Ng3 {[%emt 0:00:08]} Ne7 {[%emt 0:
00:08]} 10. O-O {[%emt 0:00:18]} Ng6 {[%emt 0:00:10]} 11. Bg5 {[%emt 0:00:05]}
h6 {[%emt 0:00:02]} 12. Be3 {[%emt 0:00:12]} Bxe3 {[%emt 0:00:15]} 13. fxe3 {
[%emt 0:00:01]} O-O {[%emt 0:00:24]} 14. Nf5 {[%emt 0:00:04]} Bc8 {[%emt 0:00:
05]} 15. Qe1 {[%emt 0:00:26]} c6 {[%emt 0:00:14]} 16. Qf2 {[%emt 0:00:13]} Bxf5
{[%emt 0:00:42]} 17. Qxf5 {[%emt 0:00:10]} Qe7 {[%emt 0:00:07]} 18. Qxg6 {
[%emt 0:00:11]} d5 {[%emt 0:00:14]} 19. Qf5 {[%emt 0:00:05]} d4 {[%emt 0:00:50]
} 20. exd4 {[%emt 0:00:06]} exd4 {[%emt 0:00:02]} 21. Ne2 {[%emt 0:00:08]} Rad8
{[%emt 0:00:21]} 22. Ng3 {[%emt 0:00:04]} Kh8 {[%emt 0:01:05]} 23. Qf2 {[%emt
0:00:07]} c5 {[%emt 0:00:07]} 24. Nf5 {[%emt 0:00:07]} Qe5 {[%emt 0:00:11]} 25.
Nxh6 {[%emt 0:00:23]} Nh5 {[%emt 0:00:26]} 26. Nxf7+ {[%emt 0:00:23]} Rxf7 {
[%emt 0:00:07]} 27. Qxf7 {[%emt 0:00:02]} Nf4 {[%emt 0:00:12]} 1-0

[Event "Dvaro taure"]
[Site "Taujenai, Lithuania"]
[Date "2021.11.28"]
[Round "7.16"]
[White "Mulevicius, Andrius"]
[Black "Aleidzans, Vadims"]
[Result "1-0"]
[WhiteElo "1698"]
[BlackElo "1563"]
[PlyCount "155"]
[EventDate "2021.??.??"]
[TimeControl "10+5"]
[WhiteClock "0:00:13"]
[BlackClock "0:00:12"]

1. e4 {[%emt 0:00:02]} e5 {[%emt 0:00:02]} 2. Nf3 {[%emt 0:00:01]} Nc6 {[%emt
0:00:03]} 3. d4 {[%emt 0:00:00]} exd4 {[%emt 0:00:04]} 4. Bc4 {[%emt 0:00:00]}
Nf6 {[%emt 0:00:05]} 5. O-O {[%emt 0:00:03]} Bc5 {[%emt 0:00:04]} 6. c3 {[%emt
0:00:10]} dxc3 {[%emt 0:01:13]} 7. e5 {[%emt 0:00:07]} d5 {[%emt 0:00:08]} 8.
exf6 {[%emt 0:00:18]} dxc4 {[%emt 0:00:04]} 9. fxg7 {[%emt 0:00:15]} Rg8 {
[%emt 0:00:03]} 10. Nxc3 {[%emt 0:01:03]} Qxd1 {[%emt 0:00:15]} 11. Rxd1 {
[%emt 0:00:02]} Be6 {[%emt 0:00:03]} 12. Bh6 {[%emt 0:00:17]} Rd8 {[%emt 0:01:
07]} 13. Ng5 {[%emt 0:00:54]} Be7 {[%emt 0:00:51]} 14. Nxh7 {[%emt 0:01:20]}
Bf5 {[%emt 0:00:28]} 15. Nb5 {[%emt 0:02:04]} Rc8 {[%emt 0:01:59]} 16. Ng5 {
[%emt 0:03:24]} Bxg5 {[%emt 0:00:18]} 17. Bxg5 Rxg7 {[%emt 0:00:02]} 18. Re1+ {
[%emt 0:00:02]} Be6 {[%emt 0:00:13]} 19. Bf4 {[%emt 0:00:15]} Nb4 {[%emt 0:03:
59]} 20. Nxc7+ {[%emt 0:00:04]} Rxc7 {[%emt 0:00:01]} 21. Bxc7 {[%emt 0:00:02]}
Nc2 {[%emt 0:00:02]} 22. Rxe6+ {[%emt 0:01:12]} fxe6 {[%emt 0:00:02]} 23. Rc1 {
[%emt 0:00:01]} Rxc7 {[%emt 0:00:19]} 24. Rxc2 {[%emt 0:00:02]} b5 {[%emt 0:00:
01]} 25. Kf1 {[%emt 0:00:09]} a5 {[%emt 0:00:02]} 26. a3 {[%emt 0:00:02]} Kd7 {
[%emt 0:00:01]} 27. Ke2 {[%emt 0:00:01]} Kd6 {[%emt 0:00:03]} 28. Ke3 {[%emt 0:
00:08]} Ke5 {[%emt 0:00:05]} 29. f4+ {[%emt 0:00:06]} Kf5 {[%emt 0:00:02]} 30.
h3 {[%emt 0:00:06]} Rd7 {[%emt 0:00:17]} 31. g4+ {[%emt 0:00:10]} Kf6 {[%emt 0:
00:02]} 32. Rd2 {[%emt 0:00:08]} Rh7 {[%emt 0:00:15]} 33. Rh2 {[%emt 0:00:05]}
Rd7 {[%emt 0:00:01]} 34. Ke4 {[%emt 0:00:05]} Rd3 {[%emt 0:00:01]} 35. g5+ {
[%emt 0:00:05]} Kf7 {[%emt 0:00:03]} 36. h4 {[%emt 0:00:04]} b4 {[%emt 0:00:05]
} 37. axb4 {[%emt 0:00:02]} axb4 {[%emt 0:00:01]} 38. h5 {[%emt 0:00:01]} Rd1 {
[%emt 0:00:06]} 39. h6 {[%emt 0:00:12]} Kg8 {[%emt 0:00:04]} 40. g6 {[%emt 0:
00:02]} Rg1 {[%emt 0:00:04]} 41. g7 {[%emt 0:00:07]} Kh7 {[%emt 0:00:02]} 42.
Ke5 {[%emt 0:00:09]} Re1+ {[%emt 0:00:02]} 43. Kf6 {[%emt 0:00:02]} c3 {[%emt
0:00:09]} 44. bxc3 {[%emt 0:00:04]} bxc3 {[%emt 0:00:01]} 45. Kf7 {[%emt 0:00:
04]} Rg1 {[%emt 0:00:04]} 46. Kxe6 {[%emt 0:00:15]} c2 {[%emt 0:00:20]} 47.
Rxc2 {[%emt 0:00:05]} Kxh6 {[%emt 0:00:01]} 48. Kf6 {[%emt 0:00:04]} Rg6+ {
[%emt 0:00:03]} 49. Kf5 {[%emt 0:00:09]} Kxg7 {[%emt 0:00:06]} 50. Rc7+ {[%emt
0:00:04]} Kh6 {[%emt 0:00:01]} 51. Rf7 {[%emt 0:00:05]} Rg1 {[%emt 0:00:18]}
52. Kf6 {[%emt 0:00:11]} Rf1 {[%emt 0:00:01]} 53. f5 {[%emt 0:00:02]} Rf2 {
[%emt 0:00:02]} 54. Re7 {[%emt 0:00:11]} Kh5 {[%emt 0:00:05]} 55. Rg7 {[%emt 0:
00:05]} Rf1 {[%emt 0:00:04]} 56. Ke6 {[%emt 0:00:07]} Kh6 {[%emt 0:00:06]} 57.
Rg6+ {[%emt 0:00:07]} Kh7 {[%emt 0:00:01]} 58. Kf6 {[%emt 0:00:01]} Rf2 {[%emt
0:00:06]} 59. Rg5 {[%emt 0:00:05]} Rf1 {[%emt 0:00:16]} 60. Rh5+ {[%emt 0:00:
04]} Kg8 {[%emt 0:00:01]} 61. Rg5+ {[%emt 0:00:03]} Kf8 {[%emt 0:00:01]} 62.
Rg2 {[%emt 0:00:07]} Rf3 {[%emt 0:00:02]} 63. Rh2 {[%emt 0:00:03]} Kg8 {[%emt
0:00:03]} 64. Rh4 {[%emt 0:00:04]} Rf1 {[%emt 0:00:02]} 65. Ra4 {[%emt 0:00:05]
} Rf2 {[%emt 0:00:04]} 66. Ra5 {[%emt 0:00:08]} Re2 {[%emt 0:00:05]} 67. Ra8+ {
[%emt 0:00:08]} Kh7 {[%emt 0:00:01]} 68. Kf7 {[%emt 0:00:03]} Rb2 {[%emt 0:00:
08]} 69. Ra7 {[%emt 0:00:05]} Kh8 {[%emt 0:00:14]} 70. f6 {[%emt 0:00:06]} Rf2
{[%emt 0:00:03]} 71. Ra5 {[%emt 0:00:07]} Rh2 {[%emt 0:00:03]} 72. Rg5 {[%emt
0:00:14]} Kh7 {[%emt 0:00:02]} 73. Kf8 {[%emt 0:00:07]} Ra2 {[%emt 0:00:08]}
74. Rg7+ {[%emt 0:00:04]} Kh6 {[%emt 0:00:05]} 75. Re7 {[%emt 0:00:03]} Kg6 {
[%emt 0:00:12]} 76. f7 {[%emt 0:00:06]} Ra8+ {[%emt 0:00:03]} 77. Re8 {[%emt 0:
00:04]} Ra6 {[%emt 0:00:01]} 78. Kg8 {[%emt 0:00:21]} 1-0